[Event "Live Chess"]
[Site "Chess.com"]
[Date "2023.05.21"]
[Round "-"]
[White "romchyk1219"]
[Black "KeithArkell"]
[Result "0-1"]
[WhiteElo "646"]
[BlackElo "2474"]
[TimeControl "300"]
[EndTime "5:45:38 PDT"]
[Termination "KeithArkell won by checkmate"]

1. e4 {[%clk 0:04:57.1]} 1... c6 {[%clk 0:04:59]} 2. d4 {[%clk 0:04:55.4]} 2...
d5 {[%clk 0:04:58]} 3. e5 {[%clk 0:04:53.6]} 3... c5 {[%clk 0:04:56.8]} 4. dxc5
{[%clk 0:04:50.3]} 4... Nc6 {[%clk 0:04:55.3]} 5. Nf3 {[%clk 0:04:47.6]} 5...
Bg4 {[%clk 0:04:54.2]} 6. Bf4 {[%clk 0:04:39.5]} 6... e6 {[%clk 0:04:49.1]} 7.
Bb5 {[%clk 0:04:35.5]} 7... Qa5+ {[%clk 0:04:45.2]} 8. Nc3 {[%clk 0:04:29]} 8...
Bxc5 {[%clk 0:04:44.1]} 9. Bxc6+ {[%clk 0:04:21.7]} 9... bxc6 {[%clk 0:04:42.7]}
10. h3 {[%clk 0:04:21.3]} 10... Bxf3 {[%clk 0:04:41.4]} 11. Qxf3 {[%clk
0:04:19.8]} 11... Ne7 {[%clk 0:04:39.3]} 12. O-O {[%clk 0:04:17.3]} 12... Ng6
{[%clk 0:04:37.5]} 13. Bd2 {[%clk 0:04:12.8]} 13... Qc7 {[%clk 0:04:35.6]} 14.
Bf4 {[%clk 0:04:00.9]} 14... Nxf4 {[%clk 0:04:34.2]} 15. Qxf4 {[%clk 0:04:00.8]}
15... O-O {[%clk 0:04:31.3]} 16. Ne2 {[%clk 0:03:54.4]} 16... Rab8 {[%clk
0:04:26.7]} 17. b3 {[%clk 0:03:50.8]} 17... Rb4 {[%clk 0:04:17.7]} 18. c4 {[%clk
0:03:40.4]} 18... f6 {[%clk 0:04:10.4]} 19. exf6 {[%clk 0:03:33.7]} 19... Qxf4
{[%clk 0:04:10.3]} 20. Nxf4 {[%clk 0:03:32.1]} 20... Rxf6 {[%clk 0:04:10.1]} 21.
Nd3 {[%clk 0:03:28.3]} 21... Bf8 {[%clk 0:04:05.4]} 22. Nxb4 {[%clk 0:03:26.1]}
22... Bxb4 {[%clk 0:04:04.4]} 23. a3 {[%clk 0:03:20.4]} 23... Bc3 {[%clk
0:04:01.5]} 24. Rac1 {[%clk 0:03:16.8]} 24... Bd4 {[%clk 0:03:58.6]} 25. cxd5
{[%clk 0:03:11.6]} 25... cxd5 {[%clk 0:03:56.4]} 26. Rc8+ {[%clk 0:03:09.6]}
26... Kf7 {[%clk 0:03:55.3]} 27. Rc7+ {[%clk 0:03:06.3]} 27... Kg6 {[%clk
0:03:54.5]} 28. Rcc1 {[%clk 0:03:04.3]} 28... a5 {[%clk 0:03:47.5]} 29. b4
{[%clk 0:02:58.6]} 29... axb4 {[%clk 0:03:37]} 30. axb4 {[%clk 0:02:58.2]} 30...
Rf7 {[%clk 0:03:34]} 31. Rb1 {[%clk 0:02:54.8]} 31... Rb7 {[%clk 0:03:32.7]} 32.
Rb3 {[%clk 0:02:52.2]} 32... Bb6 {[%clk 0:03:31.1]} 33. Rfb1 {[%clk 0:02:50.2]}
33... Rc7 {[%clk 0:03:29.6]} 34. Kh2 {[%clk 0:02:46.5]} 34... h5 {[%clk
0:03:28.7]} 35. g4 {[%clk 0:02:41.4]} 35... hxg4 {[%clk 0:03:25.6]} 36. hxg4
{[%clk 0:02:41.3]} 36... Kg5 {[%clk 0:03:24.6]} 37. Kg3 {[%clk 0:02:40.3]} 37...
Rf7 {[%clk 0:03:22.7]} 38. Rf3 {[%clk 0:02:33.1]} 38... Bc7+ {[%clk 0:03:17.3]}
39. Kg2 {[%clk 0:02:30]} 39... Bf4 {[%clk 0:03:15.9]} 40. b5 {[%clk 0:02:22]}
40... Kxg4 {[%clk 0:03:14.9]} 41. b6 {[%clk 0:02:18.6]} 41... Rb7 {[%clk
0:03:13.9]} 42. Rb4 {[%clk 0:02:13.7]} 42... g5 {[%clk 0:03:12.5]} 43. Rh3
{[%clk 0:02:00.4]} 43... Kf5 {[%clk 0:03:09.7]} 44. Rh5 {[%clk 0:01:54.4]} 44...
Ke5 {[%clk 0:03:05.9]} 45. Kf3 {[%clk 0:01:50.4]} 45... Kd6 {[%clk 0:03:04.1]}
46. Kg4 {[%clk 0:01:47]} 46... Kc5 {[%clk 0:03:02.4]} 47. Rb1 {[%clk 0:01:38.1]}
47... Rxb6 {[%clk 0:03:01.4]} 48. Rxb6 {[%clk 0:01:37.5]} 48... Kxb6 {[%clk
0:03:00.4]} 49. Rh6 {[%clk 0:01:34.6]} 49... Kc5 {[%clk 0:02:57.1]} 50. Rxe6
{[%clk 0:01:33.6]} 50... d4 {[%clk 0:02:56.4]} 51. Re1 {[%clk 0:01:30.5]} 51...
d3 {[%clk 0:02:55.5]} 52. Rd1 {[%clk 0:01:30]} 52... Kd4 {[%clk 0:02:51.7]} 53.
f3 {[%clk 0:01:25.5]} 53... d2 {[%clk 0:02:48.7]} 54. Kf5 {[%clk 0:01:16.8]}
54... Ke3 {[%clk 0:02:47.2]} 55. Rxd2 {[%clk 0:01:12.1]} 55... Kxd2 {[%clk
0:02:46.1]} 56. Kg4 {[%clk 0:01:08.7]} 56... Ke2 {[%clk 0:02:45.3]} 57. Kf5
{[%clk 0:01:06.1]} 57... Kxf3 {[%clk 0:02:44.2]} 58. Kg6 {[%clk 0:01:04.4]}
58... g4 {[%clk 0:02:43.4]} 59. Kh5 {[%clk 0:01:04.1]} 59... g3 {[%clk
0:02:42.9]} 60. Kg6 {[%clk 0:01:03.2]} 60... g2 {[%clk 0:02:42.2]} 61. Kf5
{[%clk 0:01:02.8]} 61... g1=Q {[%clk 0:02:41.1]} 62. Ke6 {[%clk 0:01:02.2]}
62... Qg6+ {[%clk 0:02:40]} 63. Kd5 {[%clk 0:01:01.6]} 63... Qd6+ {[%clk
0:02:38.8]} 64. Kc4 {[%clk 0:01:00.4]} 64... Ke4 {[%clk 0:02:37.6]} 65. Kc3
{[%clk 0:00:59.6]} 65... Qc5+ {[%clk 0:02:36.2]} 66. Kb3 {[%clk 0:00:59.1]}
66... Be5 {[%clk 0:02:33.6]} 67. Ka4 {[%clk 0:00:58.1]} 67... Qb6 {[%clk
0:02:31.1]} 68. Ka3 {[%clk 0:00:56.8]} 68... Qb5 {[%clk 0:02:30.4]} 69. Ka2
{[%clk 0:00:56.1]} 69... Qb2# {[%clk 0:02:29.5]} 0-1

[Event "Live Chess"]
[Site "Chess.com"]
[Date "2023.05.21"]
[Round "-"]
[White "davigator"]
[Black "raminguy"]
[Result "1-0"]
[WhiteElo "2318"]
[BlackElo "1955"]
[TimeControl "300"]
[EndTime "5:45:41 PDT"]
[Termination "davigator won by resignation"]

1. e4 {[%clk 0:04:58.6]} 1... e5 {[%clk 0:04:59.1]} 2. Nf3 {[%clk 0:04:57.5]}
2... Nc6 {[%clk 0:04:58.7]} 3. Bc4 {[%clk 0:04:56.4]} 3... Bc5 {[%clk
0:04:58.2]} 4. c3 {[%clk 0:04:55.3]} 4... Nf6 {[%clk 0:04:57.8]} 5. d3 {[%clk
0:04:54.6]} 5... O-O {[%clk 0:04:56.4]} 6. Nbd2 {[%clk 0:04:53]} 6... a5 {[%clk
0:04:55.3]} 7. a4 {[%clk 0:04:50.1]} 7... d5 {[%clk 0:04:52.9]} 8. exd5 {[%clk
0:04:48.6]} 8... Nxd5 {[%clk 0:04:52.8]} 9. O-O {[%clk 0:04:47.4]} 9... Be6
{[%clk 0:04:52.4]} 10. Re1 {[%clk 0:04:45.7]} 10... Ba7 {[%clk 0:04:51.3]} 11.
Bb5 {[%clk 0:04:38.9]} 11... f6 {[%clk 0:04:49]} 12. Ne4 {[%clk 0:04:38]} 12...
Bf7 {[%clk 0:04:46.2]} 13. h3 {[%clk 0:04:32.8]} 13... Nde7 {[%clk 0:04:15.3]}
14. Be3 {[%clk 0:04:28.5]} 14... Bxe3 {[%clk 0:04:11.9]} 15. Rxe3 {[%clk
0:04:27.5]} 15... Qd7 {[%clk 0:04:01.7]} 16. Qc2 {[%clk 0:04:23.8]} 16... Rad8
{[%clk 0:03:59.9]} 17. Rd1 {[%clk 0:04:20.3]} 17... Nd5 {[%clk 0:03:54.4]} 18.
Ree1 {[%clk 0:04:17.4]} 18... Nf4 {[%clk 0:03:45.9]} 19. d4 {[%clk 0:04:16.3]}
19... Qf5 {[%clk 0:03:36.9]} 20. Bxc6 {[%clk 0:04:12.7]} 20... bxc6 {[%clk
0:03:35.1]} 21. dxe5 {[%clk 0:04:11]} 21... Nxh3+ {[%clk 0:03:31.9]} 22. Kh2
{[%clk 0:03:46.3]} 22... Nf4 {[%clk 0:03:05]} 23. exf6 {[%clk 0:03:43.2]} 23...
Qg4 {[%clk 0:02:34]} 24. Ng3 {[%clk 0:03:35.4]} 24... h5 {[%clk 0:02:18]} 25.
fxg7 {[%clk 0:03:32.5]} 25... Kxg7 {[%clk 0:02:07.6]} 26. Nf5+ {[%clk
0:03:21.5]} 26... Kh8 {[%clk 0:01:59.2]} 27. N5h4 {[%clk 0:03:15.7]} 27... Rxd1
{[%clk 0:01:38.1]} 28. Qxd1 {[%clk 0:03:10.8]} 28... Rg8 {[%clk 0:01:37]} 29.
Qd4+ {[%clk 0:03:09.2]} 29... Rg7 {[%clk 0:01:31]} 30. Re4 {[%clk 0:03:02.6]}
30... c5 {[%clk 0:01:02.7]} 31. Qe5 {[%clk 0:02:48.2]} 31... Ng6 {[%clk
0:00:51.5]} 32. Nxg6+ {[%clk 0:02:45.4]} 32... Qxg6 {[%clk 0:00:49.9]} 33. Nh4
{[%clk 0:02:42.5]} 33... Qg5 {[%clk 0:00:43]} 34. g3 {[%clk 0:02:20.7]} 34...
Qxe5 {[%clk 0:00:39.8]} 35. Rxe5 {[%clk 0:02:20]} 35... Bb3 {[%clk 0:00:35.4]}
36. Rxc5 {[%clk 0:02:18.4]} 36... Bxa4 {[%clk 0:00:34.7]} 37. Rxa5 {[%clk
0:02:17.7]} 37... Bd1 {[%clk 0:00:32.2]} 38. f3 {[%clk 0:02:15.3]} 38... Re7
{[%clk 0:00:30.5]} 39. Rxh5+ {[%clk 0:02:13.1]} 39... Kg7 {[%clk 0:00:29.2]} 40.
Rc5 {[%clk 0:02:04.5]} 40... Re2+ {[%clk 0:00:27.3]} 41. Kh3 {[%clk 0:02:03.7]}
41... Rxb2 {[%clk 0:00:26.9]} 42. Rxc7+ {[%clk 0:02:02.5]} 42... Kf6 {[%clk
0:00:26.6]} 43. Kg4 {[%clk 0:02:00.9]} 43... Rc2 {[%clk 0:00:22.7]} 44. Kf4
{[%clk 0:01:59.5]} 1-0

[Event "Live Chess"]
[Site "Chess.com"]
[Date "2023.05.21"]
[Round "-"]
[White "YrrriKharkiv"]
[Black "tpm07"]
[Result "1-0"]
[WhiteElo "2077"]
[BlackElo "1942"]
[TimeControl "300"]
[EndTime "5:45:48 PDT"]
[Termination "YrrriKharkiv won by resignation"]

1. d4 {[%clk 0:04:59.2]} 1... Nf6 {[%clk 0:04:57.7]} 2. Nf3 {[%clk 0:04:58.5]}
2... d6 {[%clk 0:04:54.1]} 3. c4 {[%clk 0:04:57.1]} 3... g6 {[%clk 0:04:51.9]}
4. Nc3 {[%clk 0:04:55]} 4... Bg7 {[%clk 0:04:51]} 5. h3 {[%clk 0:04:54.6]} 5...
O-O {[%clk 0:04:48.1]} 6. Bg5 {[%clk 0:04:50.9]} 6... h6 {[%clk 0:04:43.4]} 7.
Be3 {[%clk 0:04:49.7]} 7... Nbd7 {[%clk 0:04:39]} 8. Qd2 {[%clk 0:04:47.8]} 8...
Kh7 {[%clk 0:04:37.2]} 9. g4 {[%clk 0:04:46.5]} 9... c5 {[%clk 0:04:28.1]} 10.
g5 {[%clk 0:04:42.5]} 10... hxg5 {[%clk 0:04:14.8]} 11. Nxg5+ {[%clk 0:04:35.9]}
11... Kg8 {[%clk 0:04:12.2]} 12. Bg2 {[%clk 0:04:30.4]} 12... cxd4 {[%clk
0:04:09.8]} 13. Bxd4 {[%clk 0:04:29.1]} 13... e5 {[%clk 0:04:05.2]} 14. Be3
{[%clk 0:04:25.7]} 14... Nc5 {[%clk 0:03:58.3]} 15. O-O-O {[%clk 0:04:21.3]}
15... Bf5 {[%clk 0:03:52.4]} 16. Qxd6 {[%clk 0:03:59.4]} 16... Qa5 {[%clk
0:03:48.8]} 17. Qxc5 {[%clk 0:03:57]} 1-0

[Event "Live Chess"]
[Site "Chess.com"]
[Date "2023.05.21"]
[Round "-"]
[White "mliszewski"]
[Black "GMHarry-youtube"]
[Result "0-1"]
[WhiteElo "1804"]
[BlackElo "2028"]
[TimeControl "300"]
[EndTime "5:45:50 PDT"]
[Termination "GMHarry-youtube won on time"]

1. d4 {[%clk 0:04:58.6]} 1... Nf6 {[%clk 0:04:59]} 2. Bg5 {[%clk 0:04:56.9]}
2... g6 {[%clk 0:04:58.9]} 3. Bxf6 {[%clk 0:04:55.8]} 3... exf6 {[%clk
0:04:58.8]} 4. e3 {[%clk 0:04:55.4]} 4... d5 {[%clk 0:04:56.8]} 5. g3 {[%clk
0:04:54.6]} 5... c5 {[%clk 0:04:56.2]} 6. c3 {[%clk 0:04:52.9]} 6... cxd4 {[%clk
0:04:54.3]} 7. cxd4 {[%clk 0:04:51.5]} 7... Bg7 {[%clk 0:04:53.9]} 8. Bg2 {[%clk
0:04:50.9]} 8... O-O {[%clk 0:04:53.5]} 9. Ne2 {[%clk 0:04:50.4]} 9... Nc6
{[%clk 0:04:52.6]} 10. O-O {[%clk 0:04:50.2]} 10... f5 {[%clk 0:04:51.9]} 11.
Nbc3 {[%clk 0:04:49.6]} 11... Be6 {[%clk 0:04:51.4]} 12. Nf4 {[%clk 0:04:47.7]}
12... g5 {[%clk 0:04:49]} 13. Nfxd5 {[%clk 0:04:46.1]} 13... Bxd5 {[%clk
0:04:46.1]} 14. Nxd5 {[%clk 0:04:43.8]} 14... Ne7 {[%clk 0:04:41.9]} 15. Nc3
{[%clk 0:04:40.3]} 15... Rb8 {[%clk 0:04:38.7]} 16. b4 {[%clk 0:04:36]} 16...
Ng6 {[%clk 0:04:36.6]} 17. a4 {[%clk 0:04:33.3]} 17... f4 {[%clk 0:04:34.1]} 18.
gxf4 {[%clk 0:04:29.3]} 18... gxf4 {[%clk 0:04:32.8]} 19. Qg4 {[%clk 0:04:21.1]}
19... f5 {[%clk 0:04:22]} 20. Qe2 {[%clk 0:04:07.6]} 20... Nh4 {[%clk
0:04:14.7]} 21. Bd5+ {[%clk 0:04:01.7]} 21... Kh8 {[%clk 0:04:11.8]} 22. Qh5
{[%clk 0:04:01.4]} 22... Rc8 {[%clk 0:04:03.3]} 23. Bxb7 {[%clk 0:03:38.2]}
23... Rxc3 {[%clk 0:03:59.3]} 24. b5 {[%clk 0:03:23.1]} 24... Rf6 {[%clk
0:03:39.9]} 25. Kh1 {[%clk 0:03:15.8]} 25... Rh6 {[%clk 0:03:35.3]} 26. Qf7
{[%clk 0:03:01.3]} 26... Rc7 {[%clk 0:03:27.1]} 27. Qd5 {[%clk 0:02:56.9]} 27...
Qxd5+ {[%clk 0:03:24.8]} 28. Bxd5 {[%clk 0:02:56.8]} 28... f3 {[%clk 0:03:21.8]}
29. Rg1 {[%clk 0:02:53]} 29... f4 {[%clk 0:03:08.7]} 30. Rg4 {[%clk 0:02:48]}
30... fxe3 {[%clk 0:03:05.9]} 31. fxe3 {[%clk 0:02:47.1]} 31... Ng2 {[%clk
0:02:56.9]} 32. Bxf3 {[%clk 0:02:37.6]} 32... Nxe3 {[%clk 0:02:54.2]} 33. Re4
{[%clk 0:02:34.3]} 33... Nc2 {[%clk 0:02:44.4]} 34. Re8+ {[%clk 0:02:32.5]}
34... Bf8 {[%clk 0:02:43.4]} 35. Rg1 {[%clk 0:01:59.7]} 35... Rf7 {[%clk
0:02:38]} 36. Bd5 {[%clk 0:01:58.2]} 36... Rhf6 {[%clk 0:02:29]} 37. Bxf7 {[%clk
0:01:54.2]} 37... Rxf7 {[%clk 0:02:28.3]} 38. d5 {[%clk 0:01:52.6]} 38... h6
{[%clk 0:02:21.5]} 39. d6 {[%clk 0:01:51.6]} 39... Kh7 {[%clk 0:02:20.4]} 40. d7
{[%clk 0:01:49.1]} 40... Rxd7 {[%clk 0:02:18.5]} 41. Rxf8 {[%clk 0:01:48.5]}
41... Nb4 {[%clk 0:02:02.5]} 42. Rf4 {[%clk 0:01:34.7]} 42... a5 {[%clk
0:01:57.5]} 43. Rgf1 {[%clk 0:01:29.7]} 43... Kg6 {[%clk 0:01:43.9]} 44. Rf6+
{[%clk 0:01:28.4]} 44... Kg7 {[%clk 0:01:40.2]} 45. Ra6 {[%clk 0:01:24.9]} 45...
Nxa6 {[%clk 0:01:38.5]} 46. bxa6 {[%clk 0:01:24.8]} 46... Ra7 {[%clk 0:01:37]}
47. Rg1+ {[%clk 0:01:22.8]} 47... Kh7 {[%clk 0:01:35.6]} 48. Rg4 {[%clk
0:01:18.1]} 48... Rxa6 {[%clk 0:01:34.4]} 49. Kg2 {[%clk 0:01:17.8]} 49... h5
{[%clk 0:01:33]} 50. Rd4 {[%clk 0:01:15.7]} 50... Kg6 {[%clk 0:01:31.3]} 51. h4
{[%clk 0:01:14.1]} 51... Kf5 {[%clk 0:01:30]} 52. Kg3 {[%clk 0:01:13.4]} 52...
Re6 {[%clk 0:01:16.4]} 53. Rd5+ {[%clk 0:01:10.7]} 53... Re5 {[%clk 0:01:15.5]}
54. Rd3 {[%clk 0:01:01.6]} 54... Ke4 {[%clk 0:01:11.8]} 55. Rd1 {[%clk
0:00:59.4]} 55... Rf5 {[%clk 0:01:07]} 56. Re1+ {[%clk 0:00:58.4]} 56... Kd4
{[%clk 0:01:06]} 57. Rd1+ {[%clk 0:00:55.8]} 57... Kc4 {[%clk 0:01:05.3]} 58.
Rb1 {[%clk 0:00:51.4]} 58... Rd5 {[%clk 0:00:57.2]} 59. Rc1+ {[%clk 0:00:49.9]}
59... Kb4 {[%clk 0:00:56.1]} 60. Ra1 {[%clk 0:00:47.6]} 60... Rd4 {[%clk
0:00:28.2]} 61. Kh3 {[%clk 0:00:42.8]} 61... Rd3+ {[%clk 0:00:26.8]} 62. Kg2
{[%clk 0:00:41.6]} 62... Ra3 {[%clk 0:00:26]} 63. Rf1 {[%clk 0:00:36.5]} 63...
Rxa4 {[%clk 0:00:24.1]} 64. Rf5 {[%clk 0:00:34.5]} 64... Ra2+ {[%clk 0:00:22.7]}
65. Kf3 {[%clk 0:00:33.3]} 65... a4 {[%clk 0:00:21]} 66. Rxh5 {[%clk 0:00:32.1]}
66... a3 {[%clk 0:00:20.5]} 67. Rh8 {[%clk 0:00:31.3]} 67... Rh2 {[%clk
0:00:19.5]} 68. h5 {[%clk 0:00:28.4]} 68... a2 {[%clk 0:00:18.7]} 69. Ra8 {[%clk
0:00:25.3]} 69... Kb3 {[%clk 0:00:17.9]} 70. Rb8+ {[%clk 0:00:23]} 70... Kc4
{[%clk 0:00:13.9]} 71. Ra8 {[%clk 0:00:21.9]} 71... Kc3 {[%clk 0:00:12.9]} 72.
Rc8+ {[%clk 0:00:20.8]} 72... Kb2 {[%clk 0:00:12.4]} 73. Rb8+ {[%clk 0:00:19.9]}
73... Ka1 {[%clk 0:00:12.1]} 74. Kg4 {[%clk 0:00:17.1]} 74... Rg2+ {[%clk
0:00:11.1]} 75. Kf5 {[%clk 0:00:16.1]} 75... Rb2 {[%clk 0:00:10.9]} 76. Ra8
{[%clk 0:00:12.7]} 76... Kb1 {[%clk 0:00:10.1]} 77. h6 {[%clk 0:00:11.1]} 77...
Rh2 {[%clk 0:00:07.6]} 78. Kg6 {[%clk 0:00:07.6]} 78... Rg2+ {[%clk 0:00:06.8]}
79. Kf7 {[%clk 0:00:03.7]} 79... a1=Q {[%clk 0:00:06.2]} 80. Rxa1+ {[%clk
0:00:03]} 80... Kxa1 {[%clk 0:00:06.1]} 81. h7 {[%clk 0:00:02.5]} 81... Rf2+
{[%clk 0:00:05.7]} 82. Kg8 {[%clk 0:00:02]} 82... Rg2+ {[%clk 0:00:05]} 83. Kh8
{[%clk 0:00:01.9]} 83... Rc2 {[%clk 0:00:03.5]} 84. Kg8 {[%clk 0:00:01.3]} 84...
Kb2 {[%clk 0:00:03.1]} 85. h8=Q+ {[%clk 0:00:00.5]} 85... Kb3 {[%clk 0:00:01.8]}
86. Qh3+ {[%clk 0:00:00.2]} 86... Kb4 {[%clk 0:00:01]} 0-1

[Event "Live Chess"]
[Site "Chess.com"]
[Date "2023.05.21"]
[Round "-"]
[White "onemoretime1975"]
[Black "Ayursworld"]
[Result "1-0"]
[WhiteElo "1876"]
[BlackElo "1368"]
[TimeControl "300"]
[EndTime "5:46:00 PDT"]
[Termination "onemoretime1975 won by checkmate"]

1. e4 {[%clk 0:04:58.1]} 1... c5 {[%clk 0:04:59]} 2. Nf3 {[%clk 0:04:55.6]} 2...
Nc6 {[%clk 0:04:57.5]} 3. d3 {[%clk 0:04:51.4]} 3... e5 {[%clk 0:04:56]} 4. g3
{[%clk 0:04:48]} 4... Nf6 {[%clk 0:04:54.9]} 5. Bg2 {[%clk 0:04:45.9]} 5... d6
{[%clk 0:04:52]} 6. c3 {[%clk 0:04:45]} 6... Be7 {[%clk 0:04:49.3]} 7. O-O
{[%clk 0:04:43.3]} 7... Bg4 {[%clk 0:04:47]} 8. h3 {[%clk 0:04:41]} 8... Bxf3
{[%clk 0:04:44.9]} 9. Qxf3 {[%clk 0:04:39.1]} 9... O-O {[%clk 0:04:43.4]} 10.
Qd1 {[%clk 0:04:21.3]} 10... Qd7 {[%clk 0:04:40]} 11. Kh2 {[%clk 0:04:16]} 11...
Rad8 {[%clk 0:04:26.5]} 12. Bg5 {[%clk 0:04:02.8]} 12... h6 {[%clk 0:04:22.5]}
13. Bxf6 {[%clk 0:03:57.8]} 13... Bxf6 {[%clk 0:04:20.7]} 14. Nd2 {[%clk
0:03:51]} 14... Bg5 {[%clk 0:04:18.3]} 15. Nf3 {[%clk 0:03:38.7]} 15... Qe7
{[%clk 0:04:13.3]} 16. h4 {[%clk 0:03:33.9]} 16... Bf6 {[%clk 0:04:11.2]} 17. a4
{[%clk 0:03:24.4]} 17... Qc7 {[%clk 0:04:06.5]} 18. Nd2 {[%clk 0:03:12.6]} 18...
a5 {[%clk 0:04:01]} 19. Nc4 {[%clk 0:03:09.7]} 19... b6 {[%clk 0:03:56.8]} 20.
Qb3 {[%clk 0:03:05.2]} 20... Rb8 {[%clk 0:03:52.4]} 21. Qb5 {[%clk 0:02:50.4]}
21... Na7 {[%clk 0:03:47.1]} 22. Qb3 {[%clk 0:02:41.4]} 22... Nc6 {[%clk
0:03:40.2]} 23. Bh3 {[%clk 0:02:33.2]} 23... Na7 {[%clk 0:03:35.7]} 24. Rae1
{[%clk 0:02:25.8]} 24... Rfd8 {[%clk 0:03:28.7]} 25. Bg2 {[%clk 0:02:18.2]}
25... b5 {[%clk 0:03:25.7]} 26. axb5 {[%clk 0:02:15.6]} 26... Rxb5 {[%clk
0:03:22.8]} 27. Qc2 {[%clk 0:02:11.7]} 27... Qb6 {[%clk 0:03:14.2]} 28. f4
{[%clk 0:02:02.9]} 28... Qb7 {[%clk 0:02:59.1]} 29. fxe5 {[%clk 0:01:54.7]}
29... dxe5 {[%clk 0:02:55.6]} 30. Qe2 {[%clk 0:01:42]} 30... a4 {[%clk
0:02:39.9]} 31. Qg4 {[%clk 0:01:31.8]} 31... Qc6 {[%clk 0:02:29.8]} 32. Rf3
{[%clk 0:01:17.8]} 32... Kh7 {[%clk 0:02:08.7]} 33. Ref1 {[%clk 0:01:15.3]}
33... Kh8 {[%clk 0:01:33.5]} 34. Qh5 {[%clk 0:01:06]} 34... Rf8 {[%clk
0:01:18.1]} 35. Rxf6 {[%clk 0:01:03.4]} 35... gxf6 {[%clk 0:01:15.1]} 36. Qxh6+
{[%clk 0:01:02]} 36... Kg8 {[%clk 0:01:14]} 37. Rxf6 {[%clk 0:00:54.5]} 37...
Qxf6 {[%clk 0:01:12.3]} 38. Qxf6 {[%clk 0:00:52.9]} 38... a3 {[%clk 0:01:09.9]}
39. bxa3 {[%clk 0:00:50.4]} 39... Rb3 {[%clk 0:01:07.9]} 40. Nxe5 {[%clk
0:00:48.1]} 40... Rxa3 {[%clk 0:01:02.2]} 41. Bh3 {[%clk 0:00:43.3]} 41... Ra2+
{[%clk 0:01:00.3]} 42. Kg1 {[%clk 0:00:41]} 42... Ra1+ {[%clk 0:00:58.4]} 43.
Kf2 {[%clk 0:00:39.3]} 43... Ra2+ {[%clk 0:00:57.4]} 44. Ke3 {[%clk 0:00:37.9]}
44... Ra1 {[%clk 0:00:55.3]} 45. Bf5 {[%clk 0:00:36.5]} 45... Re1+ {[%clk
0:00:52.8]} 46. Kf2 {[%clk 0:00:34.3]} 46... Rc1 {[%clk 0:00:50.1]} 47. Qg5+
{[%clk 0:00:33.2]} 47... Kh8 {[%clk 0:00:48.1]} 48. Qh6+ {[%clk 0:00:31.8]}
48... Kg8 {[%clk 0:00:44.9]} 49. Qh7# {[%clk 0:00:30.8]} 1-0

[Event "Live Chess"]
[Site "Chess.com"]
[Date "2023.05.21"]
[Round "-"]
[White "wot-not"]
[Black "jumush"]
[Result "0-1"]
[WhiteElo "1532"]
[BlackElo "1747"]
[TimeControl "300"]
[EndTime "5:46:09 PDT"]
[Termination "jumush won by resignation"]

1. d4 {[%clk 0:04:55.7]} 1... d5 {[%clk 0:04:55.7]} 2. c4 {[%clk 0:04:54.2]}
2... e6 {[%clk 0:04:54.1]} 3. Nc3 {[%clk 0:04:52.1]} 3... c5 {[%clk 0:04:52.1]}
4. cxd5 {[%clk 0:04:50.3]} 4... cxd4 {[%clk 0:04:49.1]} 5. Qxd4 {[%clk
0:04:48.9]} 5... Nc6 {[%clk 0:04:47.2]} 6. Qd1 {[%clk 0:04:46.3]} 6... exd5
{[%clk 0:04:45.7]} 7. Qxd5 {[%clk 0:04:44.3]} 7... Bd7 {[%clk 0:04:44.2]} 8. Nf3
{[%clk 0:04:33.9]} 8... Nf6 {[%clk 0:04:42]} 9. Qg5 {[%clk 0:04:27.4]} 9... h6
{[%clk 0:04:39.8]} 10. Qg3 {[%clk 0:04:24]} 10... g5 {[%clk 0:04:28.2]} 11. e4
{[%clk 0:04:21.5]} 11... Bc5 {[%clk 0:04:21]} 12. Bb5 {[%clk 0:04:13.9]} 12...
Qe7 {[%clk 0:04:18.3]} 13. O-O {[%clk 0:04:11.6]} 13... O-O-O {[%clk 0:04:14.9]}
14. Nd5 {[%clk 0:03:56.3]} 14... Nxd5 {[%clk 0:04:08.4]} 15. exd5 {[%clk
0:03:55.3]} 15... Bd6 {[%clk 0:04:02.5]} 16. Ne5 {[%clk 0:03:37.5]} 16... Nxe5
{[%clk 0:03:59.5]} 17. Bxd7+ {[%clk 0:03:33.1]} 17... Nxd7 {[%clk 0:03:57.5]}
18. Qc3+ {[%clk 0:03:25.5]} 18... Kb8 {[%clk 0:03:55.7]} 19. Be3 {[%clk
0:03:23.8]} 19... b6 {[%clk 0:03:50.4]} 20. a4 {[%clk 0:03:16.7]} 20... Rc8
{[%clk 0:03:48.4]} 21. Qd3 {[%clk 0:03:09.4]} 21... Qe5 {[%clk 0:03:44.9]} 22.
g3 {[%clk 0:03:06.1]} 22... h5 {[%clk 0:03:42.8]} 23. a5 {[%clk 0:03:04.6]}
23... Nc5 {[%clk 0:03:39.3]} 24. Bxc5 {[%clk 0:03:03]} 24... Bxc5 {[%clk
0:03:36.2]} 25. axb6 {[%clk 0:03:02]} 25... Bxb6 {[%clk 0:03:34.5]} 26. Rfe1
{[%clk 0:02:54.9]} 26... Qf6 {[%clk 0:03:30.1]} 27. Re2 {[%clk 0:02:49.4]} 27...
Rhd8 {[%clk 0:03:26.5]} 28. Rd1 {[%clk 0:02:29.9]} 28... h4 {[%clk 0:03:20.2]}
29. Kg2 {[%clk 0:02:28.5]} 29... hxg3 {[%clk 0:03:16.6]} 30. hxg3 {[%clk
0:02:27.9]} 30... g4 {[%clk 0:03:13.3]} 31. Rh1 {[%clk 0:02:22.3]} 31... Rd6
{[%clk 0:03:10.8]} 32. Rh4 {[%clk 0:02:20.6]} 32... Qf3+ {[%clk 0:03:04.7]} 33.
Qxf3 {[%clk 0:02:17.3]} 33... gxf3+ {[%clk 0:03:02.9]} 34. Kxf3 {[%clk
0:02:16.7]} 34... Rxd5 {[%clk 0:03:01.8]} 35. Re7 {[%clk 0:02:07.6]} 35... Rf5+
{[%clk 0:02:59.4]} 36. Kg4 {[%clk 0:02:03.1]} 36... Rxf2 {[%clk 0:02:57.8]} 37.
Rh7 {[%clk 0:02:02.3]} 37... Rc7 {[%clk 0:02:55.9]} 38. Re8+ {[%clk 0:01:53.7]}
38... Kb7 {[%clk 0:02:54.1]} 39. b4 {[%clk 0:01:48.4]} 39... Rb2 {[%clk
0:02:52.1]} 40. Re4 {[%clk 0:01:46.9]} 40... Ka6 {[%clk 0:02:45.5]} 41. Rh5
{[%clk 0:01:44.4]} 41... Rd7 {[%clk 0:02:30.5]} 42. Rh1 {[%clk 0:01:31.3]} 42...
Rd4 {[%clk 0:02:27.8]} 43. Rxd4 {[%clk 0:01:24]} 43... Bxd4 {[%clk 0:02:25.8]}
44. Rd1 {[%clk 0:01:19.2]} 44... Rxb4 {[%clk 0:02:22.3]} 45. Kf5 {[%clk
0:01:16.9]} 45... f6 {[%clk 0:02:19.4]} 46. g4 {[%clk 0:01:15.7]} 46... Be5
{[%clk 0:02:16.3]} 47. g5 {[%clk 0:01:12.2]} 47... fxg5 {[%clk 0:02:11.2]} 48.
Kxe5 {[%clk 0:01:11.1]} 48... g4 {[%clk 0:02:10]} 49. Rd6+ {[%clk 0:00:52.3]}
49... Kb5 {[%clk 0:02:07.5]} 50. Rd5+ {[%clk 0:00:51.1]} 50... Ka4 {[%clk
0:02:05.6]} 51. Kf5 {[%clk 0:00:48.3]} 51... a5 {[%clk 0:02:03.6]} 52. Rd8
{[%clk 0:00:44]} 52... g3 {[%clk 0:01:59.6]} 53. Rg8 {[%clk 0:00:41.8]} 53...
Rb3 {[%clk 0:01:55.8]} 0-1